bitfinex/quotes_BTCUSD_20251009
["timestamp","ask_amount","ask_price","bid_price","bid_amount"]
[1760016323951,0.19158117,123480.0,123470.0,0.10355206]
[1760016324169,0.16199578,123460.0,123450.0,0.3829738]
[1760016324397,0.21373578,123460.0,123450.0,0.78014644]
[1760016324602,0.19010578,123460.0,123450.0,0.79566644]
[1760016325029,0.19010578,123460.0,123450.0,0.95767535]
[1760016326383,0.19010578,123460.0,123450.0,0.79566644]
[1760016326592,0.19010578,123460.0,123450.0,0.95767535]
[1760016327403,0.16199578,123460.0,123450.0,0.14482644]
[1760016327614,0.21373578,123460.0,123450.0,0.78014644]
[1760016329229,0.21373578,123460.0,123450.0,0.79566644]
[1760016329966,0.17429907,123470.0,123450.0,0.72791535]
[1760016330198,0.03712595,123480.0,123470.0,0.16198266]
[1760016330390,0.00050163,123480.0,123470.0,0.26553472]
[1760016330520,0.00050163,123480.0,123470.0,0.27523472]
[1760016330725,0.00050163,123480.0,123470.0,0.50499472]
[1760016331531,0.00150163,123480.0,123470.0,0.50499472]
[1760016332104,0.00050163,123480.0,123470.0,0.50499472]
[1760016332656,0.16247117,123480.0,123470.0,0.50499472]
[1760016332870,0.00050163,123480.0,123470.0,0.50499472]
[1760016337187,0.00050163,123480.0,123470.0,0.27523472]
[1760016337411,0.00050163,123480.0,123470.0,0.92599472]
[1760016338616,0.00050163,123480.0,123470.0,0.27523472]
[1760016338734,0.16247117,123480.0,123470.0,0.91625472]
[1760016340092,0.16247117,123480.0,123470.0,0.26553472]
[1760016340291,0.16247117,123480.0,123470.0,0.91625472]
[1760016340501,0.17783117,123480.0,123470.0,0.91621472]
[1760016340730,0.21416117,123480.0,123470.0,0.50911206]
[1760016340940,0.21416117,123480.0,123470.0,0.73871206]
[1760016341145,0.21416117,123480.0,123470.0,0.08312206]
[1760016341364,0.21416117,123480.0,123470.0,0.42108]
[1760016341365,0.25302408,123480.0,123470.0,0.42108]
[1760016341595,0.25302408,123480.0,123470.0,0.65068]
[1760016341772,0.23847504,123480.0,123470.0,0.65068]
[1760016342186,0.23847504,123480.0,123450.0,0.38306438]
[1760016342187,0.16199578,123460.0,123450.0,0.38306438]
[1760016342399,0.21368578,123460.0,123450.0,0.55038644]
[1760016342637,0.21368578,123460.0,123450.0,0.78002644]
[1760016342849,0.18908578,123460.0,123450.0,0.72791535]
[1760016343059,0.18908578,123460.0,123450.0,0.79554644]
[1760016343276,0.18908578,123460.0,123450.0,0.79550644]
[1760016344112,0.18908578,123460.0,123450.0,0.95751535]
[1760016344307,0.18908578,123460.0,123450.0,0.56590644]
[1760016344465,0.18908578,123460.0,123450.0,0.79550644]
[1760016346652,0.21357578,123460.0,123450.0,0.77994644]
[1760016347220,0.21357578,123460.0,123450.0,0.12930644]
[1760016347400,0.21357578,123460.0,123450.0,0.77994644]
[1760016348392,0.21457578,123460.0,123450.0,0.77994644]
[1760016348541,0.21557578,123460.0,123450.0,0.77994644]
[1760016351478,0.16399578,123460.0,123450.0,0.95729535]
[1760016351976,0.16399578,123460.0,123450.0,0.79528644]
[1760016352534,0.16399578,123460.0,123450.0,0.95729535]
[1760016353807,0.16399578,123460.0,123450.0,0.72773535]
[1760016354011,0.002,123460.0,123450.0,0.96699535]
[1760016354226,0.002,123460.0,123450.0,0.73743535]
[1760016354441,0.002,123460.0,123450.0,0.96699535]
[1760016354678,0.16299578,123460.0,123450.0,0.96699535]
[1760016354889,0.16199445,123470.0,123450.0,0.96699535]
[1760016355121,0.16199445,123470.0,123460.0,0.08312206]
[1760016355326,0.17736445,123470.0,123460.0,0.09846206]
[1760016356717,0.17836445,123470.0,123460.0,0.09846206]
[1760016356919,0.17936445,123470.0,123460.0,0.09846206]
[1760016357141,0.17836445,123470.0,123460.0,0.26045784]
[1760016357342,0.001,123470.0,123460.0,0.27015784]
[1760016357508,0.002,123470.0,123460.0,0.49971784]
[1760016358351,0.16198266,123470.0,123460.0,0.49971784]
[1760016358555,0.16298266,123470.0,123460.0,0.49971784]
[1760016359500,0.16298266,123470.0,123460.0,0.49001784]
[1760016359703,0.16298266,123470.0,123460.0,0.49971784]
[1760016359900,0.001,123470.0,123460.0,0.27015784]
[1760016360106,0.001,123470.0,123460.0,0.49971784]
[1760016360322,0.001,123470.0,123460.0,0.27015784]
[1760016360502,0.001,123470.0,123460.0,0.49971784]
[1760016361982,0.17420945,123480.0,123470.0,0.16198266]
[1760016362290,0.17420945,123480.0,123470.0,0.31759206]
[1760016362418,0.18957945,123480.0,123470.0,0.08803206]
[1760016362618,0.02760163,123480.0,123470.0,0.68647472]
[1760016362843,0.16247117,123480.0,123470.0,0.91603472]
[1760016363244,0.00050163,123480.0,123470.0,0.91603472]
[1760016364078,0.00150163,123480.0,123470.0,0.91603472]
[1760016364477,0.00150163,123480.0,123470.0,0.92573472]
[1760016365263,0.16347117,123480.0,123470.0,0.91603472]
[1760016365456,0.16247117,123480.0,123470.0,0.91603472]
[1760016366483,0.17784117,123480.0,123470.0,0.26535472]
[1760016366706,0.17784117,123480.0,123470.0,0.91603472]
[1760016366902,0.17784117,123480.0,123470.0,0.26535472]
[1760016367222,0.19029117,123480.0,123470.0,0.91603472]
[1760016367422,0.21478117,123480.0,123470.0,0.91603472]
[1760016368336,0.21478117,123480.0,123470.0,0.91599472]
[1760016368829,0.21478117,123480.0,123470.0,0.26535472]
[1760016369033,0.21478117,123480.0,123470.0,0.91599472]
[1760016369776,0.19029117,123480.0,123470.0,0.91599472]
[1760016370982,0.19029117,123480.0,123470.0,0.75401206]
[1760016371198,0.21283117,123480.0,123470.0,0.26535472]
[1760016371387,0.21283117,123480.0,123470.0,0.68643472]
[1760016371550,0.21283117,123480.0,123470.0,0.91595472]
[1760016372426,0.19029117,123480.0,123470.0,0.91595472]
[1760016373040,0.21283117,123480.0,123470.0,0.91595472]
[1760016373643,0.17492117,123480.0,123470.0,0.91595472]
[1760016373820,0.16247117,123480.0,123470.0,0.92565472]
[1760016374637,0.16247117,123480.0,123470.0,0.91595472]
[1760016375877,0.16247117,123480.0,123470.0,0.10337206]
[1760016376081,0.18994117,123480.0,123470.0,0.91595472]
[1760016377155,0.17437117,123480.0,123470.0,0.91595472]
[1760016377373,0.18994117,123480.0,123470.0,0.75397206]
[1760016377902,0.18994117,123480.0,123470.0,0.91595472]
[1760016378099,0.21248117,123480.0,123470.0,0.08803206]
[1760016378382,0.21248117,123480.0,123470.0,0.73863206]
[1760016378588,0.18994117,123480.0,123470.0,0.75415206]
[1760016378747,0.18994117,123480.0,123470.0,0.91613472]
[1760016379170,0.18994117,123480.0,123470.0,0.10355206]
[1760016379350,0.18994117,123480.0,123470.0,0.91613472]
[1760016381108,0.18994117,123480.0,123470.0,0.75415206]
[1760016381749,0.18994117,123480.0,123470.0,0.91613472]
[1760016383180,0.17437117,123480.0,123470.0,0.83193472]
[1760016383323,0.17437117,123480.0,123470.0,0.68661472]
[1760016383535,0.17437117,123480.0,123470.0,0.91613472]
[1760016383907,0.18994117,123480.0,123470.0,0.91613472]
[1760016384112,0.17437117,123480.0,123470.0,0.68661472]
[1760016384345,0.16247117,123480.0,123470.0,0.91613472]
[1760016385714,0.16247117,123480.0,123470.0,0.75415206]
[1760016386047,0.18994117,123480.0,123470.0,0.75415206]
[1760016389173,0.18994117,123480.0,123470.0,0.52463206]
[1760016389385,0.18994117,123480.0,123470.0,0.75415206]
[1760016389748,0.18994117,123480.0,123470.0,0.91613472]
[1760016389948,0.17437117,123480.0,123470.0,0.91613472]
[1760016390163,0.16247117,123480.0,123470.0,0.91613472]
[1760016390787,0.16247117,123480.0,123470.0,0.68661472]
[1760016390994,0.16247117,123480.0,123470.0,0.91613472]
[1760016391195,0.16247117,123480.0,123470.0,0.68661472]
[1760016391517,0.16247117,123480.0,123470.0,0.91613472]
[1760016391845,0.16247117,123480.0,123470.0,0.75415206]
[1760016392236,0.16247117,123480.0,123470.0,0.91613472]
[1760016392436,0.16247117,123480.0,123470.0,0.52463206]
[1760016392692,0.17804117,123480.0,123470.0,0.91609472]
[1760016392973,0.00050163,123480.0,123470.0,0.92579472]
[1760016393361,0.00050163,123480.0,123470.0,0.95594662]
[1760016394261,0.00050163,123480.0,123470.0,0.72646662]
[1760016394563,0.00050163,123480.0,123470.0,0.95594662]
[1760016395276,0.00050163,123480.0,123470.0,1.29594662]
[1760016395607,1e-08,123480.0,123470.0,1.66434062]
[1760016395790,1e-08,123480.0,123470.0,1.89382062]
[1760016396514,1e-08,123480.0,123470.0,1.90382062]
[1760016397569,1e-08,123480.0,123470.0,1.90482062]
[1760016397745,1e-08,123480.0,123470.0,1.90582062]
[1760016397952,1e-08,123480.0,123470.0,1.90482062]
[1760016400050,1e-08,123480.0,123470.0,1.67534062]
[1760016400270,1e-08,123480.0,123470.0,1.90482062]
[1760016400912,1e-08,123480.0,123470.0,1.90582062]
[1760016401518,1e-08,123480.0,123470.0,6.07846662]
[1760016401718,1e-08,123480.0,123470.0,6.30794662]
[1760016402809,1e-08,123480.0,123470.0,6.07846662]
[1760016403014,1e-08,123480.0,123470.0,6.30790662]
[1760016403606,1e-08,123480.0,123470.0,1.30790662]
[1760016403816,1e-08,123480.0,123470.0,6.07846662]
[1760016404017,1e-08,123480.0,123470.0,5.65738662]
[1760016404213,1e-08,123480.0,123470.0,6.64470662]
[1760016404635,1e-08,123480.0,123470.0,1.64470662]
[1760016404841,1e-08,123480.0,123470.0,6.64470662]
[1760016406370,1e-08,123480.0,123470.0,6.41526662]
[1760016406584,1e-08,123480.0,123470.0,6.64470662]
[1760016407009,1e-08,123480.0,123470.0,1.64470662]
[1760016407178,1e-08,123480.0,123470.0,6.64470662]
[1760016407373,1e-08,123480.0,123470.0,1.64470662]
[1760016407578,1e-08,123480.0,123470.0,6.64470662]
[1760016407778,1e-08,123480.0,123470.0,1.64470662]
[1760016408207,1e-08,123480.0,123470.0,6.41526662]
[1760016408410,1e-08,123480.0,123470.0,6.64470662]
[1760016409010,1e-08,123480.0,123470.0,6.41526662]
[1760016409205,1e-08,123480.0,123470.0,1.64470662]
[1760016409451,1e-08,123480.0,123470.0,6.64470662]
[1760016410066,1e-08,123480.0,123470.0,1.64470662]
[1760016410271,1e-08,123480.0,123470.0,6.64470662]
[1760016410778,1e-08,123480.0,123470.0,1.64470662]
[1760016410979,1e-08,123480.0,123470.0,6.64470662]
[1760016411185,1e-08,123480.0,123470.0,1.56042662]
[1760016411359,1e-08,123480.0,123470.0,6.64462662]
[1760016412905,1e-08,123480.0,123470.0,1.64462662]
[1760016413329,1e-08,123480.0,123470.0,6.64462662]
[1760016413535,1e-08,123480.0,123470.0,1.64462662]
[1760016413922,1e-08,123480.0,123470.0,6.64462662]
[1760016414128,1e-08,123480.0,123470.0,6.65262662]
[1760016414555,1e-08,123480.0,123470.0,1.65262662]
[1760016415323,1e-08,123480.0,123470.0,5.66538662]
[1760016415495,1e-08,123480.0,123470.0,6.65258662]
[1760016415854,1e-08,123480.0,123470.0,1.65258662]
[1760016416249,1e-08,123480.0,123470.0,6.23158662]
[1760016416493,1e-08,123480.0,123470.0,6.65258662]
[1760016418625,1e-08,123480.0,123470.0,6.42318662]
[1760016418836,1e-08,123480.0,123470.0,1.65258662]
[1760016418984,1e-08,123480.0,123470.0,6.65258662]
[1760016420599,1e-08,123480.0,123470.0,6.19078962]
[1760016420827,1e-08,123480.0,123470.0,5.66538662]
[1760016421023,1e-08,123480.0,123470.0,1.64446662]
[1760016421250,1e-08,123480.0,123470.0,6.64446662]
[1760016422072,1e-08,123480.0,123470.0,0.65738662]
[1760016422274,1e-08,123480.0,123470.0,6.64446662]
[1760016422475,1e-08,123480.0,123470.0,1.64446662]
[1760016422729,1e-08,123480.0,123470.0,5.65738662]
[1760016422932,1e-08,123480.0,123470.0,6.64446662]
[1760016423588,1e-08,123480.0,123470.0,4.87179762]
[1760016423789,1e-08,123480.0,123470.0,1.64446662]
[1760016423990,1e-08,123480.0,123470.0,6.02733462]
[1760016424210,1e-08,123480.0,123470.0,1.56030662]
[1760016424423,1e-08,123480.0,123470.0,5.84514162]
[1760016424628,1e-08,123480.0,123470.0,6.02333862]
[1760016424790,1e-08,123480.0,123470.0,1.64446662]
[1760016425151,1e-08,123480.0,123470.0,6.04212462]
[1760016425352,1e-08,123480.0,123470.0,6.04212362]
[1760016425565,1e-08,123480.0,123470.0,6.31132862]
[1760016425689,1e-08,123480.0,123470.0,1.64446662]
[1760016425896,1e-08,123480.0,123470.0,6.05775562]
[1760016426236,1e-08,123480.0,123470.0,1.65246662]
[1760016426392,1e-08,123480.0,123470.0,6.06575962]
[1760016426603,1e-08,123480.0,123470.0,6.05465362]
[1760016426800,1e-08,123480.0,123470.0,5.85081762]
[1760016427095,1e-08,123480.0,123470.0,1.91926662]
[1760016427805,1e-08,123480.0,123470.0,6.49729762]
[1760016428010,1e-08,123480.0,123470.0,1.91926662]
[1760016428417,1e-08,123480.0,123470.0,6.31380962]
[1760016428920,1e-08,123480.0,123470.0,1.91926662]
[1760016429073,1e-08,123480.0,123470.0,6.74809262]
[1760016429276,1e-08,123480.0,123470.0,1.91926662]
[1760016429462,1e-08,123480.0,123470.0,6.84959262]
[1760016429665,1e-08,123480.0,123470.0,6.91926662]
[1760016430586,1e-08,123480.0,123470.0,4.78613962]
[1760016430807,1e-08,123480.0,123470.0,1.91922662]
[1760016431211,1e-08,123480.0,123470.0,6.91922662]
[1760016432987,1e-08,123480.0,123470.0,6.41959962]
[1760016433167,1e-08,123480.0,123470.0,1.91483929]
[1760016433317,1e-08,123480.0,123470.0,6.91483929]
[1760016435390,1e-08,123480.0,123470.0,1.91483929]
[1760016435596,1e-08,123480.0,123470.0,6.91483929]
[1760016436570,1e-08,123480.0,123470.0,6.90683929]
[1760016436976,1e-08,123480.0,123470.0,1.90683929]
[1760016437191,1e-08,123480.0,123470.0,6.90683929]
[1760016437413,1e-08,123480.0,123470.0,1.90683929]
[1760016437864,1e-08,123480.0,123470.0,6.90683929]
[1760016438074,1e-08,123480.0,123470.0,1.90683929]
[1760016438535,1e-08,123480.0,123470.0,6.25209529]
[1760016438669,1e-08,123480.0,123470.0,6.40128029]
[1760016438875,1e-08,123480.0,123470.0,6.64680429]
[1760016439250,1e-08,123480.0,123470.0,6.60751229]
[1760016439451,1e-08,123480.0,123470.0,6.66912429]
[1760016439660,1e-08,123480.0,123470.0,1.67747929]
[1760016439867,1e-08,123480.0,123470.0,6.75291629]
[1760016440068,1e-08,123480.0,123470.0,1.90683929]
[1760016440279,1e-08,123480.0,123470.0,6.83922329]
[1760016440479,1e-08,123480.0,123470.0,0.91979929]
[1760016440685,1e-08,123480.0,123470.0,6.44573029]
[1760016440892,1e-08,123480.0,123470.0,6.75799429]
[1760016441094,1e-08,123480.0,123470.0,1.90683929]
[1760016441296,1e-08,123480.0,123470.0,6.90683929]
[1760016441718,1e-08,123480.0,123470.0,6.91483929]
[1760016444617,1e-08,123480.0,123470.0,1.91483929]
[1760016444947,1e-08,123480.0,123470.0,6.91483929]
[1760016445241,1e-08,123480.0,123470.0,0.29084739]
[1760016445400,1e-08,123480.0,123470.0,0.71176739]
[1760016445599,1e-08,123480.0,123470.0,1.28108739]
[1760016445831,1e-08,123480.0,123470.0,0.94108739]
[1760016446242,1e-08,123480.0,123470.0,1.05076739]
[1760016446443,1e-08,123480.0,123470.0,1.31023929]
[1760016446659,1e-08,123480.0,123470.0,1.25247929]
[1760016446849,1e-08,123480.0,123470.0,1.48179929]
[1760016447231,1e-08,123480.0,123470.0,1.25347929]
[1760016447439,1e-08,123480.0,123470.0,1.48279929]
[1760016447637,1e-08,123480.0,123470.0,1.08091929]
[1760016447839,1e-08,123480.0,123470.0,1.43216929]
[1760016448407,1e-08,123480.0,123470.0,0.65999929]
[1760016448615,1e-08,123480.0,123470.0,1.28253929]
[1760016448827,0.17766955,123480.0,123470.0,0.60214739]
[1760016449030,0.21198955,123480.0,123470.0,0.89690739]
[1760016449237,0.21198955,123480.0,123470.0,0.08464473]
[1760016449443,0.21198955,123480.0,123470.0,0.89690739]
[1760016449623,0.05002001,123480.0,123470.0,0.89690739]
[1760016449829,0.01147001,123480.0,123470.0,0.91142739]
[1760016450209,1e-08,123480.0,123470.0,0.68206739]
[1760016450418,1e-08,123480.0,123470.0,0.91142739]
[1760016450628,0.16196955,123480.0,123470.0,0.91142739]
[1760016452455,1e-08,123480.0,123470.0,0.91142739]
[1760016453342,1e-08,123480.0,123470.0,1.28157929]
[1760016453543,1e-08,123480.0,123470.0,2.20870229]
[1760016453748,1e-08,123480.0,123470.0,2.23300753]
[1760016453954,1e-08,123480.0,123470.0,2.00364753]
[1760016454133,1e-08,123480.0,123470.0,2.23300753]
[1760016455329,1e-08,123480.0,123470.0,2.10116353]
[1760016455546,1e-08,123480.0,123470.0,2.14364253]
[1760016455750,1e-08,123480.0,123470.0,2.01299753]
[1760016455993,1e-08,123480.0,123470.0,1.65346453]
[1760016456217,1e-08,123480.0,123470.0,1.42410453]
[1760016456532,1e-08,123480.0,123470.0,1.65346453]
[1760016458412,1e-08,123480.0,123470.0,1.76398653]
[1760016458810,1e-08,123480.0,123470.0,1.53462653]
[1760016458995,1e-08,123480.0,123470.0,1.76398653]
[1760016459294,1e-08,123480.0,123470.0,1.53462653]
[1760016459503,1e-08,123480.0,123470.0,1.65346453]
[1760016459727,1e-08,123480.0,123470.0,1.76205953]
[1760016460225,1e-08,123480.0,123470.0,1.53269953]
[1760016460427,1e-08,123480.0,123470.0,1.76205953]
[1760016461658,1e-08,123480.0,123470.0,1.75979153]
[1760016461893,1e-08,123480.0,123470.0,1.08730453]
[1760016462098,1e-08,123480.0,123470.0,1.31666453]
[1760016462305,1e-08,123480.0,123470.0,1.08730453]
[1760016462513,1e-08,123480.0,123470.0,1.31666453]
[1760016462721,1e-08,123480.0,123470.0,1.31566453]
[1760016463995,1e-08,123480.0,123470.0,1.08630453]
[1760016464196,1e-08,123480.0,123470.0,1.31566453]
[1760016466194,1e-08,123480.0,123470.0,1.08630453]
[1760016466412,1e-08,123480.0,123470.0,1.31566453]
[1760016468245,1e-08,123480.0,123470.0,1.08630453]
[1760016468563,1e-08,123480.0,123470.0,1.31566453]
[1760016470255,1e-08,123480.0,123470.0,1.08630453]
[1760016470474,1e-08,123480.0,123470.0,1.43422453]
[1760016471682,1e-08,123480.0,123470.0,1.20486453]
[1760016471889,1e-08,123480.0,123470.0,1.08630453]
[1760016472099,1e-08,123480.0,123470.0,1.31566453]
[1760016472609,1e-08,123480.0,123470.0,1.31666453]
[1760016472754,1e-08,123480.0,123470.0,1.52239453]
[1760016473407,1e-08,123480.0,123470.0,1.51800965]
[1760016473823,1e-08,123480.0,123470.0,1.51900965]
[1760016474125,1e-08,123480.0,123470.0,1.51800965]
[1760016475571,1e-08,123480.0,123470.0,1.08291965]
[1760016475781,1e-08,123480.0,123470.0,1.67379165]
[1760016477393,1e-08,123480.0,123470.0,1.44443165]
[1760016477545,1e-08,123480.0,123470.0,1.67379165]
[1760016478092,1e-08,123480.0,123470.0,1.44443165]
[1760016478533,1e-08,123480.0,123470.0,1.67379165]
[1760016480387,1e-08,123480.0,123470.0,1.08291965]
[1760016480611,1e-08,123480.0,123470.0,1.41403465]
[1760016480818,1e-08,123480.0,123470.0,1.31227965]
[1760016481241,1e-08,123480.0,123470.0,0.66191965]
[1760016481444,1e-08,123480.0,123470.0,1.46438065]
[1760016483494,1e-08,123480.0,123470.0,0.81402065]
[1760016483717,1e-08,123480.0,123470.0,1.80118065]
[1760016485052,1e-08,123480.0,123470.0,1.46438065]
[1760016486525,1e-08,123480.0,123470.0,1.31227965]
[1760016486727,1e-08,123480.0,123470.0,5.24093765]
[1760016486929,1e-08,123480.0,123470.0,5.31429865]
[1760016487130,1e-08,123480.0,123470.0,5.21558965]
[1760016487328,1e-08,123480.0,123470.0,6.05785765]
[1760016487504,1e-08,123480.0,123470.0,5.74747965]
[1760016487688,1e-08,123480.0,123470.0,5.74749465]
[1760016488116,1e-08,123480.0,123470.0,5.57718165]
[1760016488309,1e-08,123480.0,123470.0,1.31227965]
[1760016488518,1e-08,123480.0,123470.0,5.58348365]
[1760016488721,1e-08,123480.0,123470.0,5.80694765]
[1760016488889,1e-08,123480.0,123470.0,5.60757365]
[1760016489245,1e-08,123480.0,123470.0,5.65615665]
[1760016489386,1e-08,123480.0,123470.0,1.57907965]
[1760016489735,1e-08,123480.0,123470.0,5.39628265]
[1760016489884,1e-08,123480.0,123470.0,4.51991865]
[1760016490273,1e-08,123480.0,123470.0,1.65252065]
[1760016490475,1e-08,123480.0,123470.0,1.88192065]
[1760016490810,1e-08,123480.0,123470.0,0.66191965]
[1760016491011,0.17743955,123480.0,123470.0,0.68754775]
[1760016491224,0.04962001,123480.0,123470.0,0.89264251]
[1760016491594,0.04962001,123480.0,123470.0,1.23264251]
[1760016491802,0.02693001,123480.0,123470.0,1.24816251]
[1760016492122,0.01146001,123480.0,123470.0,0.59776251]
[1760016492322,0.01146001,123480.0,123470.0,1.24816251]
[1760016492661,0.01146001,123480.0,123470.0,1.24716251]
[1760016492987,0.02693001,123480.0,123470.0,1.24716251]
[1760016493310,0.02693001,123480.0,123470.0,1.01776251]
[1760016493525,0.02693001,123480.0,123470.0,1.24716251]
[1760016494471,0.02693001,123480.0,123470.0,1.23164251]
[1760016494674,0.04962001,123480.0,123470.0,1.14740251]
[1760016494874,0.04962001,123480.0,123470.0,1.23160251]
[1760016495086,0.01146001,123480.0,123470.0,1.24712251]
[1760016495295,1e-08,123480.0,123470.0,1.24712251]
[1760016495960,1e-08,123480.0,123470.0,1.01776251]
[1760016496162,1e-08,123480.0,123470.0,1.24712251]
[1760016500529,1e-08,123480.0,123470.0,0.59676251]
[1760016500676,1e-08,123480.0,123470.0,1.24716251]
[1760016501360,1e-08,123480.0,123470.0,1.01780251]
[1760016501496,1e-08,123480.0,123470.0,1.25686251]
[1760016501926,1e-08,123480.0,123470.0,1.24716251]
[1760016502682,0.01547001,123480.0,123470.0,1.24716251]
[1760016502864,1e-08,123480.0,123470.0,1.24716251]
[1760016503561,1e-08,123480.0,123470.0,1.01780251]
[1760016503789,1e-08,123480.0,123470.0,1.25686251]
[1760016503999,1e-08,123480.0,123470.0,1.28701441]
[1760016505589,1e-08,123480.0,123470.0,1.28801441]
[1760016506394,1e-08,123480.0,123470.0,0.63761441]
[1760016506591,0.01547001,123480.0,123470.0,0.62791441]
[1760016506793,0.01547001,123480.0,123470.0,1.04895441]
[1760016506928,0.01547001,123480.0,123470.0,1.27831441]
[1760016508377,0.01547001,123480.0,123470.0,1.04795441]
[1760016508529,0.01547001,123480.0,123470.0,1.27731441]
[1760016508749,1e-08,123480.0,123470.0,1.19311441]
[1760016508956,1e-08,123480.0,123470.0,1.27731441]
[1760016509195,1e-08,123480.0,123470.0,0.96375441]
[1760016509408,1e-08,123480.0,123470.0,1.27731441]
[1760016511540,1e-08,123480.0,123470.0,1.04795441]
[1760016511749,1e-08,123480.0,123470.0,0.62691441]
[1760016511913,1e-08,123480.0,123470.0,1.27731441]
[1760016513815,1e-08,123480.0,123470.0,1.2770748]
[1760016514093,1e-08,123480.0,123470.0,1.0477148]
[1760016514299,1e-08,123480.0,123470.0,1.2770748]
[1760016514818,1e-08,123480.0,123470.0,1.0477148]
[1760016515019,1e-08,123480.0,123470.0,0.6266748]
[1760016515222,1e-08,123480.0,123470.0,1.2770748]
[1760016516725,1e-08,123480.0,123470.0,0.8560348]
[1760016516899,1e-08,123480.0,123470.0,1.2770748]
[1760016519506,1e-08,123480.0,123470.0,1.2867748]
[1760016524845,0.16196955,123480.0,123470.0,0.6062229]
[1760016525088,0.05161001,123480.0,123470.0,1.0020429]
[1760016525289,1e-08,123480.0,123470.0,1.2469229]
[1760016525692,1e-08,123480.0,123470.0,1.2566229]
[1760016526486,1e-08,123480.0,123470.0,1.0175629]
[1760016526639,1e-08,123480.0,123470.0,1.2469229]
[1760016529782,1e-08,123480.0,123470.0,1.2566229]
[1760016531629,1e-08,123480.0,123470.0,1.0272629]
[1760016531778,1e-08,123480.0,123470.0,1.2566229]
[1760016532856,1e-08,123480.0,123470.0,1.2469229]
[1760016534917,1e-08,123480.0,123470.0,1.2566229]
[1760016537132,1e-08,123480.0,123470.0,1.0272629]
[1760016537341,1e-08,123480.0,123470.0,1.2566229]
[1760016541439,0.16196955,123480.0,123470.0,1.0272629]
[1760016541625,0.16196955,123480.0,123470.0,1.2469229]
[1760016542331,0.01532001,123480.0,123470.0,1.2469229]
[1760016542525,1e-08,123480.0,123470.0,1.2469229]
[1760016542735,1e-08,123480.0,123470.0,1.2566229]
[1760016544076,1e-08,123480.0,123470.0,1.0272629]
[1760016544279,1e-08,123480.0,123470.0,1.2566229]
[1760016544478,1e-08,123480.0,123470.0,1.0272629]
[1760016544689,1e-08,123480.0,123470.0,1.2469229]
[1760016544886,1e-08,123480.0,123470.0,0.5965229]
[1760016545092,0.16196955,123480.0,123470.0,1.2469229]
[1760016545468,0.16196955,123480.0,123470.0,0.8258829]
[1760016545675,0.16196955,123480.0,123470.0,1.2469229]
[1760016545880,1e-08,123480.0,123470.0,1.2469229]
[1760016548445,1e-08,123480.0,123470.0,1.2566229]
[1760016549774,1e-08,123480.0,123470.0,1.2565829]
[1760016550474,1e-08,123480.0,123470.0,1.0272629]
[1760016550676,1e-08,123480.0,123470.0,1.2565829]
[1760016551097,1e-08,123480.0,123470.0,1.2808917]
[1760016553046,1e-08,123480.0,123470.0,1.0817236]
[1760016553288,1e-08,123480.0,123470.0,1.3110436]
[1760016553581,1e-08,123480.0,123470.0,2.1788536]
[1760016554672,1e-08,123480.0,123470.0,2.1798536]
[1760016555785,1e-08,123480.0,123470.0,1.5294936]
[1760016556024,1e-08,123480.0,123470.0,2.1788536]
[1760016556228,1e-08,123480.0,123470.0,0.8910036]
[1760016556445,1e-08,123480.0,123470.0,0.6626836]
[1760016556830,1e-08,123480.0,123470.0,1.0740236]
[1760016557146,1e-08,123480.0,123470.0,1.3013436]
[1760016557494,1e-08,123480.0,123470.0,1.3120436]
[1760016558055,1e-08,123480.0,123470.0,1.3110436]
[1760016560371,1e-08,123480.0,123470.0,1.0817236]
[1760016560586,1e-08,123480.0,123470.0,0.6606836]
[1760016560801,0.21380955,123480.0,123470.0,1.10920904]
[1760016561006,0.21380955,123480.0,123470.0,1.2556717]
[1760016561410,0.21380955,123480.0,123470.0,0.6208317]
[1760016561636,0.18916955,123480.0,123470.0,0.6208317]
[1760016561850,0.18916955,123480.0,123470.0,1.2556717]
[1760016561851,0.21380955,123480.0,123470.0,1.2556717]
[1760016562059,0.21380955,123480.0,123470.0,0.8346317]
[1760016562261,0.18916955,123480.0,123470.0,1.2711917]
[1760016566376,0.02720001,123480.0,123470.0,1.2711917]
[1760016567142,0.18916955,123480.0,123470.0,1.2711917]
[1760016567384,0.02720001,123480.0,123470.0,1.2711917]
[1760016567587,1e-08,123480.0,123470.0,1.2808917]
[1760016571264,1e-08,123480.0,123470.0,1.0515717]
[1760016571469,1e-08,123480.0,123470.0,2.3367096]
[1760016572097,1e-08,123480.0,123470.0,2.1073896]
[1760016572309,1e-08,123480.0,123470.0,2.3367096]
[1760016572995,1e-08,123480.0,123470.0,2.1073896]
[1760016573189,1e-08,123480.0,123470.0,2.3367096]
[1760016573820,1e-08,123480.0,123470.0,2.1073896]
[1760016574069,1e-08,123480.0,123470.0,2.3367096]
[1760016574487,1e-08,123480.0,123470.0,2.6735496]
[1760016574698,1e-08,123480.0,123470.0,2.6745496]
[1760016576314,1e-08,123480.0,123470.0,2.4452296]
[1760016576753,1e-08,123480.0,123470.0,2.6745096]
[1760016577146,1e-08,123480.0,123470.0,1.6873496]
[1760016577511,1e-08,123480.0,123470.0,2.4452296]
[1760016577725,1e-08,123480.0,123470.0,2.6745096]
[1760016577943,1e-08,123480.0,123470.0,1.6873496]
[1760016578138,1e-08,123480.0,123470.0,0.8122756]
[1760016578342,1e-08,123480.0,123470.0,1.7994356]
[1760016580033,1e-08,123480.0,123470.0,0.8122756]
[1760016580246,1e-08,123480.0,123470.0,1.4625956]
[1760016580645,1e-08,123480.0,123470.0,1.3120036]
[1760016581156,1e-08,123480.0,123470.0,1.0827236]
[1760016581363,1e-08,123480.0,123470.0,1.4232756]
[1760016581624,1e-08,123480.0,123470.0,1.3120036]
[1760016581838,1e-08,123480.0,123470.0,0.8909636]
[1760016582065,1e-08,123480.0,123470.0,1.3120036]
[1760016582394,1e-08,123480.0,123470.0,1.4175216]
[1760016582602,1e-08,123480.0,123470.0,1.1882416]
[1760016582840,1e-08,123480.0,123470.0,1.4175216]
[1760016583333,1e-08,123480.0,123470.0,1.1882416]
[1760016583557,1e-08,123480.0,123470.0,1.4175216]
[1760016587270,1e-08,123480.0,123470.0,0.7672016]
[1760016587472,1e-08,123480.0,123470.0,1.3119636]
[1760016587909,1e-08,123480.0,123470.0,1.0826836]
[1760016588150,0.19074955,123480.0,123470.0,0.52532904]
[1760016588356,0.21329955,123480.0,123470.0,0.6873117]
[1760016588564,0.21329955,123480.0,123470.0,0.9165917]
[1760016588878,0.21329955,123480.0,123470.0,1.2322829]
[1760016589508,0.21329955,123480.0,123470.0,1.2312829]